[Event "*** Titled Tuesday Blitz"]
[Site "Chess.com"]
[Date "2020.12.01"]
[Round "3"]
[White "vanea_03"]
[Black "Alomaterapia"]
[Result "1-0"]
[WhiteElo "2723"]
[BlackElo "2432"]
[TimeControl "180+1"]
[EndTime "10:28:03 PST"]
[Termination "vanea_03 won on time"]

1. d4 {[%clk 0:03:00.9]} 1... d5 {[%clk 0:02:59.8]} 2. c4 {[%clk 0:03:01.1]}
2... c6 {[%clk 0:03:00.3]} 3. cxd5 {[%clk 0:03:01.3]} 3... cxd5 {[%clk
0:03:00.5]} 4. Bf4 {[%clk 0:03:02]} 4... Nc6 {[%clk 0:02:59]} 5. e3 {[%clk
0:03:02.4]} 5... Nf6 {[%clk 0:02:57.1]} 6. Bb5 {[%clk 0:03:02.7]} 6... Bf5
{[%clk 0:02:57.6]} 7. Nc3 {[%clk 0:02:58.8]} 7... a6 {[%clk 0:02:43.9]} 8. Bxc6+
{[%clk 0:02:58.1]} 8... bxc6 {[%clk 0:02:44.3]} 9. Nf3 {[%clk 0:02:57.4]} 9...
e6 {[%clk 0:02:39.4]} 10. Qa4 {[%clk 0:02:51.4]} 10... Qb6 {[%clk 0:02:37.5]}
11. Ne5 {[%clk 0:02:42.8]} 11... Rc8 {[%clk 0:02:36.8]} 12. Rc1 {[%clk
0:02:35.2]} 12... Be7 {[%clk 0:02:26.5]} 13. O-O {[%clk 0:02:11.4]} 13... O-O
{[%clk 0:02:26]} 14. f3 {[%clk 0:02:02.1]} 14... c5 {[%clk 0:01:40.6]} 15. g4
{[%clk 0:01:18.7]} 15... cxd4 {[%clk 0:01:40.6]} 16. Qxd4 {[%clk 0:01:18.3]}
16... Qxd4 {[%clk 0:01:06.9]} 17. exd4 {[%clk 0:01:17.2]} 17... Bg6 {[%clk
0:01:06.7]} 18. h4 {[%clk 0:01:07.3]} 18... h5 {[%clk 0:00:57.7]} 19. g5 {[%clk
0:01:06.5]} 19... Nh7 {[%clk 0:00:56.1]} 20. Nxg6 {[%clk 0:00:50.2]} 20... fxg6
{[%clk 0:00:57]} 21. Be5 {[%clk 0:00:44.1]} 21... Rfd8 {[%clk 0:00:31.6]} 22.
Ne2 {[%clk 0:00:42.7]} 22... Nf8 {[%clk 0:00:30.8]} 23. Nf4 {[%clk 0:00:42]}
23... Kf7 {[%clk 0:00:30.9]} 24. Nd3 {[%clk 0:00:38.4]} 24... Nd7 {[%clk
0:00:30]} 25. Kf2 {[%clk 0:00:35.5]} 25... Rc4 {[%clk 0:00:29]} 26. b3 {[%clk
0:00:34.2]} 26... Rcc8 {[%clk 0:00:28.8]} 27. Bc7 {[%clk 0:00:27.8]} 27... Re8
{[%clk 0:00:27.7]} 28. Rc3 {[%clk 0:00:24.9]} 28... Bd6 {[%clk 0:00:14.3]} 29.
Rfc1 {[%clk 0:00:22.7]} 29... Bxc7 {[%clk 0:00:13.6]} 30. Rxc7 {[%clk
0:00:23.6]} 30... Rxc7 {[%clk 0:00:13.4]} 31. Rxc7 {[%clk 0:00:24.5]} 31... Re7
{[%clk 0:00:12.1]} 32. Ke3 {[%clk 0:00:20.6]} 32... Nf8 {[%clk 0:00:08.8]} 33.
Ne5+ {[%clk 0:00:19.2]} 1-0

[Event "*** Titled Tuesday Blitz"]
[Site "Chess.com"]
[Date "2020.12.01"]
[Round "3"]
[White "ArjunErigaisi2003"]
[Black "Shota_Azaladze"]
[Result "1-0"]
[WhiteElo "2913"]
[BlackElo "2630"]
[TimeControl "180+1"]
[EndTime "10:28:04 PST"]
[Termination "ArjunErigaisi2003 won by checkmate"]

1. e4 {[%clk 0:03:00.9]} 1... g6 {[%clk 0:02:59.4]} 2. d4 {[%clk 0:02:58.9]}
2... Bg7 {[%clk 0:02:59.7]} 3. Nc3 {[%clk 0:02:59.4]} 3... d6 {[%clk 0:02:57.9]}
4. Be3 {[%clk 0:02:58.6]} 4... Nd7 {[%clk 0:02:57.6]} 5. f4 {[%clk 0:02:55.6]}
5... e6 {[%clk 0:02:56.5]} 6. Nf3 {[%clk 0:02:54.6]} 6... Ne7 {[%clk 0:02:56.3]}
7. Qd2 {[%clk 0:02:49.2]} 7... b6 {[%clk 0:02:54.5]} 8. Bd3 {[%clk 0:02:45.6]}
8... Bb7 {[%clk 0:02:54.5]} 9. O-O {[%clk 0:02:44.1]} 9... a6 {[%clk 0:02:54.5]}
10. Rae1 {[%clk 0:02:43.3]} 10... b5 {[%clk 0:02:53.7]} 11. f5 {[%clk
0:02:41.8]} 11... e5 {[%clk 0:02:38.3]} 12. Bh6 {[%clk 0:02:12.8]} 12... O-O
{[%clk 0:02:20.1]} 13. Ne2 {[%clk 0:01:54]} 13... c5 {[%clk 0:02:15]} 14. dxe5
{[%clk 0:01:50.1]} 14... dxe5 {[%clk 0:02:11.5]} 15. c4 {[%clk 0:00:59.2]} 15...
bxc4 {[%clk 0:02:03.5]} 16. Bxc4 {[%clk 0:00:52.3]} 16... Nb6 {[%clk 0:02:01.1]}
17. Bxg7 {[%clk 0:00:46.8]} 17... Kxg7 {[%clk 0:01:41.6]} 18. f6+ {[%clk
0:00:46.7]} 18... Kxf6 {[%clk 0:01:35.8]} 19. Qh6 {[%clk 0:00:47.2]} 19... Nxc4
{[%clk 0:01:34.7]} 20. Ng5+ {[%clk 0:00:46]} 20... Nf5 {[%clk 0:01:34.5]} 21.
exf5 {[%clk 0:00:39.4]} 21... Ke7 {[%clk 0:01:19.2]} 22. Qxh7 {[%clk 0:00:33.7]}
22... Qd2 {[%clk 0:01:12.8]} 23. Nf4 {[%clk 0:00:30.7]} 23... Ne3 {[%clk
0:01:10.1]} 24. Re2 {[%clk 0:00:22.9]} 24... Qd4 {[%clk 0:01:03.4]} 25. Nxg6+
{[%clk 0:00:22.9]} 25... Kd6 {[%clk 0:01:03.2]} 26. Nxf7+ {[%clk 0:00:20.6]}
26... Rxf7 {[%clk 0:01:02.2]} 27. Qxf7 {[%clk 0:00:21.5]} 27... Nxf1+ {[%clk
0:00:44.7]} 28. Kxf1 {[%clk 0:00:17]} 28... Qd1+ {[%clk 0:00:30.3]} 29. Kf2
{[%clk 0:00:17.5]} 29... Qd4+ {[%clk 0:00:30.7]} 30. Ke1 {[%clk 0:00:17.9]}
30... Qg1+ {[%clk 0:00:29.3]} 31. Kd2 {[%clk 0:00:18.5]} 31... Qd4+ {[%clk
0:00:30]} 32. Kc1 {[%clk 0:00:19]} 32... Bd5 {[%clk 0:00:24.9]} 33. Qf6+ {[%clk
0:00:12.9]} 33... Kd7 {[%clk 0:00:22.9]} 34. Nxe5+ {[%clk 0:00:12.4]} 34... Kc7
{[%clk 0:00:22.6]} 35. Qg7+ {[%clk 0:00:12.1]} 35... Kc8 {[%clk 0:00:20.2]} 36.
Qd7+ {[%clk 0:00:11.8]} 36... Kb8 {[%clk 0:00:20.7]} 37. Nc6+ {[%clk 0:00:12.7]}
37... Bxc6 {[%clk 0:00:19.7]} 38. Re8# {[%clk 0:00:13.6]} 1-0

[Event "*** Titled Tuesday Blitz"]
[Site "Chess.com"]
[Date "2020.12.01"]
[Round "3"]
[White "WeAintSurePal"]
[Black "Pelopidass"]
[Result "1/2-1/2"]
[WhiteElo "2355"]
[BlackElo "2550"]
[TimeControl "180+1"]
[EndTime "10:28:05 PST"]
[Termination "Game drawn by repetition"]

1. d4 {[%clk 0:03:00.9]} 1... Nf6 {[%clk 0:02:59]} 2. Nf3 {[%clk 0:03:01.8]}
2... g6 {[%clk 0:02:56.5]} 3. Bg5 {[%clk 0:03:01.4]} 3... Bg7 {[%clk 0:02:55.8]}
4. Nbd2 {[%clk 0:03:01.7]} 4... d5 {[%clk 0:02:54.9]} 5. e3 {[%clk 0:03:00.1]}
5... h6 {[%clk 0:02:52.8]} 6. Bh4 {[%clk 0:02:59.5]} 6... Bg4 {[%clk 0:02:47.1]}
7. c4 {[%clk 0:02:58]} 7... c6 {[%clk 0:02:45.9]} 8. Qb3 {[%clk 0:02:57.3]} 8...
Qb6 {[%clk 0:02:37.4]} 9. c5 {[%clk 0:02:55.8]} 9... Qc7 {[%clk 0:01:48.6]} 10.
Bg3 {[%clk 0:02:54.1]} 10... Qc8 {[%clk 0:01:48.6]} 11. Bd3 {[%clk 0:02:49.9]}
11... Nbd7 {[%clk 0:01:40]} 12. Ne5 {[%clk 0:02:49.3]} 12... Nxe5 {[%clk
0:01:38.1]} 13. Bxe5 {[%clk 0:02:48.4]} 13... O-O {[%clk 0:01:35.8]} 14. Qc2
{[%clk 0:02:46.6]} 14... Nd7 {[%clk 0:01:23.7]} 15. Bxg7 {[%clk 0:02:33.1]}
15... Kxg7 {[%clk 0:01:24.6]} 16. h3 {[%clk 0:02:25.1]} 16... Be6 {[%clk
0:01:23.9]} 17. Nf3 {[%clk 0:02:25.1]} 17... b6 {[%clk 0:01:10.7]} 18. b4 {[%clk
0:02:23.4]} 18... bxc5 {[%clk 0:01:08.8]} 19. bxc5 {[%clk 0:02:23.3]} 19... Rb8
{[%clk 0:01:05.6]} 20. O-O {[%clk 0:02:22.4]} 20... Qc7 {[%clk 0:01:05.1]} 21.
Rfb1 {[%clk 0:02:22.2]} 21... Rxb1+ {[%clk 0:00:59.5]} 22. Rxb1 {[%clk
0:02:23.1]} 22... Rb8 {[%clk 0:00:59.5]} 23. Rxb8 {[%clk 0:02:17.4]} 23... Qxb8
{[%clk 0:01:00.4]} 24. Qa4 {[%clk 0:02:17.4]} 24... Qc7 {[%clk 0:00:54.4]} 25.
Nd2 {[%clk 0:02:06.3]} 25... Nb8 {[%clk 0:00:48.2]} 26. Nb3 {[%clk 0:02:05.3]}
26... Bd7 {[%clk 0:00:40.3]} 27. Qb4 {[%clk 0:02:00.3]} 27... Bc8 {[%clk
0:00:25.2]} 28. Qc3 {[%clk 0:01:43.3]} 28... h5 {[%clk 0:00:24.4]} 29. e4 {[%clk
0:01:33.4]} 29... Be6 {[%clk 0:00:20.5]} 30. e5 {[%clk 0:01:31.4]} 30... f6
{[%clk 0:00:17.9]} 31. f4 {[%clk 0:01:31.2]} 31... fxe5 {[%clk 0:00:16.8]} 32.
dxe5 {[%clk 0:01:32.1]} 32... Nd7 {[%clk 0:00:14.2]} 33. Nd4 {[%clk 0:01:32.2]}
33... Nf8 {[%clk 0:00:12.6]} 34. f5 {[%clk 0:01:25.4]} 34... gxf5 {[%clk
0:00:11.5]} 35. Bxf5 {[%clk 0:01:24.8]} 35... Bxf5 {[%clk 0:00:10.6]} 36. Nxf5+
{[%clk 0:01:25.7]} 36... Kf7 {[%clk 0:00:11.2]} 37. Qf3 {[%clk 0:01:20.9]} 37...
Qxe5 {[%clk 0:00:10.2]} 38. Nd6+ {[%clk 0:01:13.9]} 38... Ke6 {[%clk 0:00:07.2]}
39. Qxf8 {[%clk 0:00:50.8]} 39... exd6 {[%clk 0:00:06.2]} 40. Qe8+ {[%clk
0:00:50.3]} 40... Kf6 {[%clk 0:00:06.2]} 41. Qf8+ {[%clk 0:00:49.9]} 41... Ke6
{[%clk 0:00:06.4]} 42. Qe8+ {[%clk 0:00:48.5]} 42... Kf6 {[%clk 0:00:06.7]} 43.
Qxc6 {[%clk 0:00:46.9]} 43... Qe1+ {[%clk 0:00:05.6]} 44. Kh2 {[%clk 0:00:47]}
44... Qe5+ {[%clk 0:00:06.4]} 45. Kg1 {[%clk 0:00:46.9]} 45... Qe1+ {[%clk
0:00:06.5]} 46. Kh2 {[%clk 0:00:46.9]} 46... Qe5+ {[%clk 0:00:06.3]} 47. Kh1
{[%clk 0:00:47]} 47... Qe1+ {[%clk 0:00:06.3]} 48. Kh2 {[%clk 0:00:47.3]}
1/2-1/2

[Event "*** Titled Tuesday Blitz"]
[Site "Chess.com"]
[Date "2020.12.01"]
[Round "3"]
[White "Yashasd1995"]
[Black "Nemsko"]
[Result "1-0"]
[WhiteElo "2592"]
[BlackElo "2381"]
[TimeControl "180+1"]
[EndTime "10:28:06 PST"]
[Termination "Yashasd1995 won by checkmate"]

1. b3 {[%clk 0:03:00.9]} 1... d5 {[%clk 0:02:55.9]} 2. Bb2 {[%clk 0:03:01.8]}
2... e6 {[%clk 0:02:53.4]} 3. e3 {[%clk 0:03:00.1]} 3... Nf6 {[%clk 0:02:54.1]}
4. f4 {[%clk 0:02:59.8]} 4... Bd6 {[%clk 0:02:54.3]} 5. Nf3 {[%clk 0:03:00.2]}
5... c5 {[%clk 0:02:54.9]} 6. Be2 {[%clk 0:02:57.8]} 6... Nc6 {[%clk 0:02:55.1]}
7. O-O {[%clk 0:02:58.7]} 7... O-O {[%clk 0:02:55.2]} 8. Ne5 {[%clk 0:02:58.7]}
8... Ne7 {[%clk 0:02:48]} 9. c4 {[%clk 0:02:56.1]} 9... b6 {[%clk 0:02:45.3]}
10. Bf3 {[%clk 0:02:50]} 10... Bb7 {[%clk 0:02:43.3]} 11. Nc3 {[%clk 0:02:49.3]}
11... a6 {[%clk 0:02:32.5]} 12. Rc1 {[%clk 0:02:41.7]} 12... Rc8 {[%clk
0:02:24]} 13. g4 {[%clk 0:02:34]} 13... Qc7 {[%clk 0:02:17]} 14. Ne2 {[%clk
0:02:31.1]} 14... Ng6 {[%clk 0:02:06.2]} 15. Nxg6 {[%clk 0:02:20.9]} 15... hxg6
{[%clk 0:02:07.1]} 16. g5 {[%clk 0:02:11.6]} 16... Nd7 {[%clk 0:02:00.7]} 17.
cxd5 {[%clk 0:01:58.3]} 17... exd5 {[%clk 0:01:59.5]} 18. Qe1 {[%clk 0:01:52]}
18... Rfe8 {[%clk 0:01:51.5]} 19. Qh4 {[%clk 0:01:51]} 19... Nf8 {[%clk
0:01:50]} 20. Bg4 {[%clk 0:01:46.4]} 20... Rcd8 {[%clk 0:01:48.8]} 21. Rf3
{[%clk 0:01:46.2]} 21... f5 {[%clk 0:01:36.5]} 22. gxf6 {[%clk 0:01:43.3]} 22...
gxf6 {[%clk 0:01:37.4]} 23. Qxf6 {[%clk 0:01:41.7]} 23... d4 {[%clk 0:01:18]}
24. Rh3 {[%clk 0:01:31.9]} 24... Qg7 {[%clk 0:01:12.2]} 25. Qxg7+ {[%clk
0:01:19.9]} 25... Kxg7 {[%clk 0:01:13.1]} 26. exd4 {[%clk 0:01:20.4]} 26... cxd4
{[%clk 0:01:07.8]} 27. Bxd4+ {[%clk 0:01:15.5]} 27... Kf7 {[%clk 0:01:06.1]} 28.
Bxb6 {[%clk 0:01:14.5]} 28... Be4 {[%clk 0:00:58.1]} 29. Bxd8 {[%clk 0:01:12.9]}
29... Rxd8 {[%clk 0:00:57.8]} 30. Re3 {[%clk 0:01:03.5]} 30... Ba8 {[%clk
0:00:48.7]} 31. Bf3 {[%clk 0:01:03.3]} 31... Bxf3 {[%clk 0:00:43.5]} 32. Rxf3
{[%clk 0:01:04.2]} 32... Ba3 {[%clk 0:00:43.7]} 33. Rc2 {[%clk 0:01:04.5]} 33...
Ne6 {[%clk 0:00:42.7]} 34. f5 {[%clk 0:01:02.7]} 34... gxf5 {[%clk 0:00:42.3]}
35. Rxf5+ {[%clk 0:01:03.6]} 35... Ke7 {[%clk 0:00:43.1]} 36. Ra5 {[%clk
0:01:01.8]} 36... Bb4 {[%clk 0:00:37.4]} 37. Rxa6 {[%clk 0:01:01]} 37... Bxd2
{[%clk 0:00:37.9]} 38. Ra7+ {[%clk 0:00:53.3]} 38... Kf6 {[%clk 0:00:36.3]} 39.
Ra6 {[%clk 0:00:48.8]} 39... Be3+ {[%clk 0:00:34.6]} 40. Kg2 {[%clk 0:00:48.5]}
40... Ke5 {[%clk 0:00:28.5]} 41. Kf3 {[%clk 0:00:44.4]} 41... Bg5 {[%clk
0:00:16]} 42. Ra5+ {[%clk 0:00:44.3]} 42... Kf6 {[%clk 0:00:16.2]} 43. Rc6
{[%clk 0:00:44.5]} 43... Bh4 {[%clk 0:00:13.8]} 44. Raa6 {[%clk 0:00:41.5]}
44... Rd3+ {[%clk 0:00:13.5]} 45. Ke4 {[%clk 0:00:40.1]} 45... Rd2 {[%clk
0:00:14.1]} 46. Rxe6+ {[%clk 0:00:39]} 46... Kg5 {[%clk 0:00:15]} 47. Rg6+
{[%clk 0:00:35.8]} 47... Kh5 {[%clk 0:00:13.9]} 48. Nf4# {[%clk 0:00:36.5]} 1-0

[Event "*** Titled Tuesday Blitz"]
[Site "Chess.com"]
[Date "2020.12.01"]
[Round "3"]
[White "Meri-Arabidze"]
[Black "Man-Chuk"]
[Result "0-1"]
[WhiteElo "2616"]
[BlackElo "2866"]
[TimeControl "180+1"]
[EndTime "10:28:07 PST"]
[Termination "Man-Chuk won by resignation"]

1. Nf3 {[%clk 0:03:00.9]} 1... d5 {[%clk 0:02:59.8]} 2. b3 {[%clk 0:03:00.5]}
2... c5 {[%clk 0:02:59.1]} 3. Bb2 {[%clk 0:03:00.6]} 3... f6 {[%clk 0:02:59.2]}
4. e3 {[%clk 0:02:57.6]} 4... e5 {[%clk 0:02:59.1]} 5. d4 {[%clk 0:02:57.9]}
5... cxd4 {[%clk 0:02:47.7]} 6. exd4 {[%clk 0:02:58.8]} 6... e4 {[%clk
0:02:48.2]} 7. Nfd2 {[%clk 0:02:59.4]} 7... f5 {[%clk 0:02:41.5]} 8. c4 {[%clk
0:02:59.4]} 8... Nf6 {[%clk 0:02:41.7]} 9. Be2 {[%clk 0:02:57.9]} 9... Be6
{[%clk 0:02:32.4]} 10. O-O {[%clk 0:02:55.4]} 10... Be7 {[%clk 0:02:31.7]} 11.
Nc3 {[%clk 0:02:53.1]} 11... O-O {[%clk 0:02:28.9]} 12. Rc1 {[%clk 0:02:41.5]}
12... Nc6 {[%clk 0:02:26.7]} 13. cxd5 {[%clk 0:02:39]} 13... Nxd5 {[%clk
0:02:26.5]} 14. Nxd5 {[%clk 0:02:38.3]} 14... Bxd5 {[%clk 0:02:25.9]} 15. Bc4
{[%clk 0:02:38.5]} 15... Kh8 {[%clk 0:01:53.1]} 16. Re1 {[%clk 0:02:33.2]} 16...
Bf6 {[%clk 0:01:51.7]} 17. Bxd5 {[%clk 0:02:13.9]} 17... Qxd5 {[%clk 0:01:52.6]}
18. Rc5 {[%clk 0:02:13.9]} 18... Qd7 {[%clk 0:01:49.9]} 19. d5 {[%clk
0:02:08.7]} 19... Bxb2 {[%clk 0:01:32.1]} 20. dxc6 {[%clk 0:02:08.3]} 20... bxc6
{[%clk 0:01:32.7]} 21. Qc2 {[%clk 0:01:28.3]} 21... Bd4 {[%clk 0:01:26.2]} 22.
Rxc6 {[%clk 0:01:27.4]} 22... Rae8 {[%clk 0:01:26.2]} 23. Nf1 {[%clk 0:01:13.5]}
23... Bb6 {[%clk 0:01:20.3]} 24. Rd1 {[%clk 0:01:07.3]} 24... Qe7 {[%clk
0:01:14.6]} 25. Rcd6 {[%clk 0:01:05.6]} 25... f4 {[%clk 0:01:10.8]} 26. Rd7
{[%clk 0:01:05.9]} 26... Qg5 {[%clk 0:00:55.5]} 27. R1d5 {[%clk 0:01:04.9]}
27... Qg6 {[%clk 0:00:55.2]} 28. R5d6 {[%clk 0:01:04.8]} 28... Rf6 {[%clk
0:00:44.3]} 29. Rxf6 {[%clk 0:00:58.9]} 29... Qxf6 {[%clk 0:00:41.9]} 30. g3
{[%clk 0:00:18.4]} 30... e3 {[%clk 0:00:38.7]} 31. fxe3 {[%clk 0:00:18.7]} 31...
fxe3 {[%clk 0:00:37.1]} 32. Qe2 {[%clk 0:00:18.9]} 32... h6 {[%clk 0:00:36.3]}
33. Rd3 {[%clk 0:00:17]} 33... Qe5 {[%clk 0:00:32]} 34. a4 {[%clk 0:00:14.2]}
34... a5 {[%clk 0:00:31.2]} 35. Kg2 {[%clk 0:00:12.2]} 35... Qe4+ {[%clk
0:00:30.3]} 36. Kh3 {[%clk 0:00:08.9]} 36... Qxd3 {[%clk 0:00:24.4]} 37. Qxd3
{[%clk 0:00:08.7]} 37... e2 {[%clk 0:00:24.9]} 0-1

[Event "*** Titled Tuesday Blitz"]
[Site "Chess.com"]
[Date "2020.12.01"]
[Round "3"]
[White "rududuyk"]
[Black "MaxLeto"]
[Result "1-0"]
[WhiteElo "2209"]
[BlackElo "2366"]
[TimeControl "180+1"]
[EndTime "10:28:07 PST"]
[Termination "rududuyk won on time"]

1. e4 {[%clk 0:03:00.9]} 1... c5 {[%clk 0:02:46.9]} 2. Nc3 {[%clk 0:03:00.8]}
2... d6 {[%clk 0:02:41.8]} 3. f4 {[%clk 0:03:00.8]} 3... Nc6 {[%clk 0:02:39.7]}
4. Nf3 {[%clk 0:03:01.1]} 4... g6 {[%clk 0:02:38.7]} 5. Bc4 {[%clk 0:03:01.6]}
5... Bg7 {[%clk 0:02:39]} 6. d3 {[%clk 0:03:02]} 6... e6 {[%clk 0:02:38.2]} 7.
O-O {[%clk 0:03:02.2]} 7... Nge7 {[%clk 0:02:38.8]} 8. Qe1 {[%clk 0:03:01.4]}
8... h6 {[%clk 0:02:36.1]} 9. Qh4 {[%clk 0:02:53.4]} 9... a6 {[%clk 0:02:29.3]}
10. a4 {[%clk 0:02:52.8]} 10... d5 {[%clk 0:02:21.2]} 11. Ba2 {[%clk 0:02:45]}
11... Nb4 {[%clk 0:01:27.3]} 12. f5 {[%clk 0:02:38]} 12... gxf5 {[%clk
0:01:18.3]} 13. Qg3 {[%clk 0:02:12.9]} 13... Rg8 {[%clk 0:01:15.2]} 14. Qf2
{[%clk 0:01:56.9]} 14... Nxa2 {[%clk 0:00:41.9]} 15. Rxa2 {[%clk 0:01:54]} 15...
dxe4 {[%clk 0:00:35.1]} 16. dxe4 {[%clk 0:01:46.2]} 16... b6 {[%clk 0:00:20.1]}
17. a5 {[%clk 0:01:27.5]} 17... Bb7 {[%clk 0:00:16.4]} 18. axb6 {[%clk
0:01:25.7]} 18... Qxb6 {[%clk 0:00:17.3]} 19. Na4 {[%clk 0:01:22.5]} 19... Qb5
{[%clk 0:00:16.2]} 20. Nxc5 {[%clk 0:01:18.1]} 20... fxe4 {[%clk 0:00:05.6]} 21.
Ne5 {[%clk 0:01:13.6]} 21... Rf8 {[%clk 0:00:03.6]} 22. Nxb7 {[%clk 0:01:06.7]}
22... Bxe5 {[%clk 0:00:02]} 23. Bxh6 {[%clk 0:00:57.1]} 23... Nf5 {[%clk
0:00:02.2]} 24. Bxf8 {[%clk 0:00:55.8]} 24... Bd4 {[%clk 0:00:02.6]} 25. Nd6+
{[%clk 0:00:53.6]} 25... Nxd6 {[%clk 0:00:02.7]} 26. Qxd4 {[%clk 0:00:51.3]}
26... Nf5 {[%clk 0:00:03.3]} 27. Qh8 {[%clk 0:00:45.8]} 27... Kd7 {[%clk
0:00:03.5]} 28. Rd1+ {[%clk 0:00:44.4]} 28... Kc7 {[%clk 0:00:03.2]} 29. Bd6+
{[%clk 0:00:41.3]} 29... Kb7 {[%clk 0:00:02.7]} 30. Qf6 {[%clk 0:00:34.8]} 30...
Qb6+ {[%clk 0:00:02.8]} 31. Kh1 {[%clk 0:00:30.9]} 31... Nxd6 {[%clk 0:00:03.4]}
32. Qe7+ {[%clk 0:00:30.9]} 32... Qc7 {[%clk 0:00:02.7]} 33. Qxd6 {[%clk
0:00:30.2]} 33... Qxc2 {[%clk 0:00:01.6]} 34. Qd7+ {[%clk 0:00:15.5]} 34... Kb6
{[%clk 0:00:02.2]} 35. Rd6+ {[%clk 0:00:14.6]} 1-0

[Event "*** Titled Tuesday Blitz"]
[Site "Chess.com"]
[Date "2020.12.01"]
[Round "3"]
[White "Morshynska"]
[Black "AquivaRubinstein"]
[Result "1/2-1/2"]
[WhiteElo "2261"]
[BlackElo "2497"]
[TimeControl "180+1"]
[EndTime "10:28:09 PST"]
[Termination "Game drawn by agreement"]

1. Nf3 {[%clk 0:03:00.9]} 1... Nf6 {[%clk 0:02:59]} 2. g3 {[%clk 0:03:00.7]}
2... g6 {[%clk 0:02:54.8]} 3. Bg2 {[%clk 0:03:00.1]} 3... Bg7 {[%clk 0:02:55.3]}
4. O-O {[%clk 0:03:01]} 4... O-O {[%clk 0:02:55.5]} 5. d4 {[%clk 0:03:01.9]}
5... c5 {[%clk 0:02:54.4]} 6. c4 {[%clk 0:02:57]} 6... cxd4 {[%clk 0:02:43.8]}
7. Nxd4 {[%clk 0:02:57.9]} 7... Nc6 {[%clk 0:02:43.5]} 8. Nc3 {[%clk 0:02:56.2]}
8... a6 {[%clk 0:02:41.4]} 9. b3 {[%clk 0:02:33.7]} 9... Nxd4 {[%clk 0:02:38]}
10. Qxd4 {[%clk 0:02:34.6]} 10... d6 {[%clk 0:02:34.8]} 11. Bb2 {[%clk
0:02:30.2]} 11... Rb8 {[%clk 0:02:25.4]} 12. a4 {[%clk 0:02:24.4]} 12... Bd7
{[%clk 0:02:10.3]} 13. a5 {[%clk 0:02:10]} 13... Bc6 {[%clk 0:02:04.7]} 14. Qd2
{[%clk 0:01:50.3]} 14... Bxg2 {[%clk 0:02:01]} 15. Kxg2 {[%clk 0:01:51.2]} 15...
b6 {[%clk 0:01:52.6]} 16. axb6 {[%clk 0:01:52.1]} 16... Qxb6 {[%clk 0:01:49]}
17. Ra3 {[%clk 0:01:49.1]} 17... e6 {[%clk 0:01:34.9]} 18. h3 {[%clk 0:01:13.9]}
18... Nd7 {[%clk 0:01:33.5]} 19. Na4 {[%clk 0:01:03.8]} 19... Qc6+ {[%clk
0:01:28.5]} 20. Kh2 {[%clk 0:01:01.2]} 20... Bxb2 {[%clk 0:01:25.5]} 21. Qxb2
{[%clk 0:01:02.1]} 21... Ne5 {[%clk 0:01:19.3]} 22. Rd1 {[%clk 0:00:55.9]} 22...
Nxc4 {[%clk 0:01:07.6]} 23. Qc1 {[%clk 0:00:55.7]} 23... Ne5 {[%clk 0:01:01.7]}
24. Qxc6 {[%clk 0:00:55.3]} 24... Nxc6 {[%clk 0:01:02.6]} 25. Rxd6 {[%clk
0:00:55.3]} 25... Na5 {[%clk 0:00:54.3]} 26. Nc5 {[%clk 0:00:51]} 26... Rb5
{[%clk 0:00:46.8]} 27. Rxa6 {[%clk 0:00:44.7]} 27... Rxc5 {[%clk 0:00:31.6]} 28.
R6xa5 {[%clk 0:00:44.4]} 28... Rc2 {[%clk 0:00:27.7]} 29. Ra2 {[%clk 0:00:43.4]}
29... Rfc8 {[%clk 0:00:27.3]} 30. Kg2 {[%clk 0:00:39.1]} 30... h5 {[%clk
0:00:26.8]} 31. h4 {[%clk 0:00:34.3]} 31... R8c3 {[%clk 0:00:25.3]} 32. Rxc2
{[%clk 0:00:30.3]} 32... Rxc2 {[%clk 0:00:25.1]} 33. e3 {[%clk 0:00:30.1]} 33...
Rb2 {[%clk 0:00:24.9]} 34. Rb5 {[%clk 0:00:29.3]} 34... Kg7 {[%clk 0:00:24.7]}
35. Kf3 {[%clk 0:00:25.9]} 35... Kf6 {[%clk 0:00:24.8]} 36. b4 {[%clk
0:00:24.8]} 36... Kg7 {[%clk 0:00:24.5]} 37. Rb7 {[%clk 0:00:23.9]} 37... Kf6
{[%clk 0:00:24.4]} 38. b5 {[%clk 0:00:23.9]} 38... Kg7 {[%clk 0:00:24.7]} 39. b6
{[%clk 0:00:23.3]} 39... Kf6 {[%clk 0:00:25]} 40. Rb8 {[%clk 0:00:22.3]} 40...
Kg7 {[%clk 0:00:25.2]} 41. e4 {[%clk 0:00:22.5]} 41... Kf6 {[%clk 0:00:23.7]}
42. Ke3 {[%clk 0:00:14.7]} 42... Kg7 {[%clk 0:00:23.7]} 43. Kf3 {[%clk
0:00:13.9]} 1/2-1/2

[Event "*** Titled Tuesday Blitz"]
[Site "Chess.com"]
[Date "2020.12.01"]
[Round "3"]
[White "JiiHart"]
[Black "Piotrek1979"]
[Result "0-1"]
[WhiteElo "2102"]
[BlackElo "2465"]
[TimeControl "180+1"]
[EndTime "10:28:09 PST"]
[Termination "Piotrek1979 won on time"]

1. e4 {[%clk 0:03:00.9]} 1... c5 {[%clk 0:02:59.1]} 2. Nf3 {[%clk 0:03:00.4]}
2... Nc6 {[%clk 0:02:57.8]} 3. d4 {[%clk 0:03:00.4]} 3... cxd4 {[%clk
0:02:56.3]} 4. Nxd4 {[%clk 0:03:01.3]} 4... Nf6 {[%clk 0:02:56.3]} 5. Nc3 {[%clk
0:03:01.5]} 5... d6 {[%clk 0:02:57.1]} 6. Bg5 {[%clk 0:02:59.9]} 6... h6 {[%clk
0:02:53.7]} 7. Bh4 {[%clk 0:02:58]} 7... e6 {[%clk 0:02:44.1]} 8. f4 {[%clk
0:02:52.8]} 8... g5 {[%clk 0:02:29.2]} 9. fxg5 {[%clk 0:02:47.2]} 9... hxg5
{[%clk 0:02:30.1]} 10. Bxg5 {[%clk 0:02:43.1]} 10... Be7 {[%clk 0:02:29.8]} 11.
Nxc6 {[%clk 0:02:31.8]} 11... bxc6 {[%clk 0:02:28.5]} 12. Qd2 {[%clk 0:02:27.4]}
12... Rb8 {[%clk 0:02:19.6]} 13. O-O-O {[%clk 0:01:53.7]} 13... Qb6 {[%clk
0:02:15.8]} 14. b3 {[%clk 0:01:51.5]} 14... Qa5 {[%clk 0:02:09.3]} 15. Kb1
{[%clk 0:01:17.2]} 15... Rg8 {[%clk 0:01:58.8]} 16. Bxf6 {[%clk 0:01:11.9]}
16... Bxf6 {[%clk 0:01:55.3]} 17. Nd5 {[%clk 0:01:12.1]} 17... Qd8 {[%clk
0:01:41.4]} 18. Nxf6+ {[%clk 0:01:11.9]} 18... Qxf6 {[%clk 0:01:42.3]} 19. Qxd6
{[%clk 0:01:12.1]} 19... Rb6 {[%clk 0:01:17]} 20. e5 {[%clk 0:01:11.5]} 20...
Qe7 {[%clk 0:01:15]} 21. h4 {[%clk 0:01:05.1]} 21... Qxd6 {[%clk 0:01:02.3]} 22.
Rxd6 {[%clk 0:00:55.4]} 22... c5 {[%clk 0:01:02.1]} 23. Rxb6 {[%clk 0:00:54.1]}
23... axb6 {[%clk 0:01:02]} 24. h5 {[%clk 0:00:53.5]} 24... Rh8 {[%clk
0:00:58.3]} 25. h6 {[%clk 0:00:53.4]} 25... Bb7 {[%clk 0:00:54.9]} 26. Rh3
{[%clk 0:00:44]} 26... Kf8 {[%clk 0:00:52.5]} 27. h7 {[%clk 0:00:29.9]} 27...
Be4 {[%clk 0:00:51.9]} 28. Bd3 {[%clk 0:00:21.8]} 28... Bxg2 {[%clk 0:00:50.6]}
29. Rg3 {[%clk 0:00:18.1]} 29... Bd5 {[%clk 0:00:50.4]} 30. a3 {[%clk
0:00:12.8]} 30... Bc6 {[%clk 0:00:49.2]} 31. b4 {[%clk 0:00:11.4]} 31... Bd5
{[%clk 0:00:42.6]} 32. Kb2 {[%clk 0:00:11.1]} 32... c4 {[%clk 0:00:41.8]} 33.
Be2 {[%clk 0:00:08.7]} 33... b5 {[%clk 0:00:42.3]} 34. a4 {[%clk 0:00:08.3]}
34... Rxh7 {[%clk 0:00:40.7]} 35. axb5 {[%clk 0:00:06.8]} 35... Rh2 {[%clk
0:00:41.1]} 36. Re3 {[%clk 0:00:04.8]} 36... Ke7 {[%clk 0:00:37.7]} 37. b6
{[%clk 0:00:04.5]} 37... Kd7 {[%clk 0:00:35.2]} 38. Ra3 {[%clk 0:00:03.3]} 38...
Kc6 {[%clk 0:00:34.6]} 39. b7 {[%clk 0:00:01.2]} 39... Kxb7 {[%clk 0:00:34.4]}
0-1